fUST/lending_fUST_20251127
["ID","MTS","AMOUNT","RATE_DAILY","PERIOD"]
[394963892,1764217832063,-91814.19371859,7.625e-05,2]
[394963894,1764217832074,-131759.47070626,7.625e-05,2]
[394964014,1764217838050,-343.48819371,7.625e-05,2]
[394964015,1764217838151,-80087.49839664,7.625e-05,2]
[394964016,1764217838163,-8984.00836411,7.625e-05,2]
[394964017,1764217838175,-50832.53817891,7.625e-05,2]
[394964018,1764217838189,-22980.45102758,7.625e-05,2]
[394964019,1764217838200,-32987.89925653,7.625e-05,2]
[394964020,1764217838212,-19227.72316444,7.625e-05,2]
[394964021,1764217838224,-16861.96021824,7.625e-05,2]
[394964022,1764217838236,-3335.44602688,7.625e-05,2]
[394964058,1764217844262,-15896.22188166,7.625e-05,2]
[394964125,1764217846163,-26678.65258611,7.625e-05,2]
[394964126,1764217846174,-53010.67533031,7.625e-05,2]
[394964128,1764217870897,300.0,7.548e-05,2]
[394964129,1764217894082,300.0,7.548e-05,2]
[394964130,1764217916361,300.0,7.548e-05,2]
[394964131,1764217938767,300.0,7.548e-05,2]
[394964135,1764217961124,300.0,7.548e-05,2]
[394964136,1764217983326,1127.0,7.548e-05,2]
[394964137,1764218005534,1427.0,7.548e-05,2]
[394964140,1764218028578,1427.0,7.548e-05,2]
[394964143,1764218050505,300.0,7.547e-05,2]
[394964144,1764218073885,300.0,7.547e-05,2]
[394964145,1764218096221,300.0,7.547e-05,2]
[394964146,1764218119106,889.76579045,7.546e-05,2]
[394964147,1764218119138,610.23420955,7.546e-05,2]
[394964148,1764218142083,1399.50297605,7.546e-05,2]
[394964149,1764218144416,1376.74941622,0.00011254,6]
[394964155,1764218486237,3967.0,0.0002,30]
[394964157,1764218643907,890000.0,7.521e-05,2]
[394964169,1764218776025,2966.4870921,6.688e-05,2]
[394964170,1764218815111,605023.7757223,7.519e-05,2]
[394964229,1764219032696,-300.0,7.517e-05,2]
[394964230,1764219032707,-214.0,7.517e-05,2]
[394964231,1764219032715,-76.51628023,7.517e-05,2]
[394964232,1764219032756,-610.94909855,7.517e-05,2]
[394964260,1764219038146,-512.53462122,7.517e-05,2]
[394964262,1764219038155,-500.0,7.517e-05,2]
[394964264,1764219038165,-500.0,7.517e-05,2]
[394964266,1764219038174,-500.0,7.517e-05,2]
[394964268,1764219038183,-500.0,7.517e-05,2]
[394964270,1764219038194,-500.0,7.517e-05,2]
[394964272,1764219038204,-75.03237812,7.517e-05,2]
[394964274,1764219038216,-424.96762188,7.517e-05,2]
[394964275,1764219038225,-248.38237812,7.517e-05,2]
[394964276,1764219038243,-251.61762188,7.517e-05,2]
[394964277,1764219038252,-500.0,7.517e-05,2]
[394964278,1764219038262,-500.0,7.517e-05,2]
[394964279,1764219038271,-500.0,7.517e-05,2]
[394964280,1764219038281,-500.0,7.517e-05,2]
[394964281,1764219038290,-327.07113647,7.517e-05,2]
[394964282,1764219038299,-534.79634368,7.517e-05,2]
[394964283,1764219038308,-552.05506698,7.517e-05,2]
[394964284,1764219038317,-500.0,7.517e-05,2]
[394964285,1764219038326,-500.0,7.517e-05,2]
[394964286,1764219038335,-5.11841949,7.517e-05,2]
[394964287,1764219038346,-494.88158051,7.517e-05,2]
[394964288,1764219038357,-369.05841949,7.517e-05,2]
[394964318,1764219040320,-130.94158051,7.517e-05,2]
[394964320,1764219040330,-500.0,7.517e-05,2]
[394964322,1764219040340,-500.0,7.517e-05,2]
[394964324,1764219040349,-500.0,7.517e-05,2]
[394964326,1764219040358,-245.69136507,7.518e-05,2]
[394964328,1764219040368,-1127.0,7.518e-05,2]
[394964330,1764219040377,-166.66,7.518e-05,2]
[394964332,1764219040387,-500.0,7.518e-05,2]
[394964334,1764219040396,-329.70705442,7.519e-05,2]
[394964337,1764219040416,-3999.998655,7.519e-05,2]
[394964851,1764219190166,-280646.51856828,7.519e-05,2]
[394964852,1764219190176,-17467.8801895,7.68e-05,2]
[394964853,1764219190185,-4264.56159023,7.698e-05,2]
[394964854,1764219190194,-500.0,7.713e-05,2]
[394964855,1764219190204,-500.0,7.713e-05,2]
[394964856,1764219190212,-500.0,7.713e-05,2]
[394964857,1764219190222,-151.0,7.713e-05,2]
[394964858,1764219190231,-500.0,7.713e-05,2]
[394964859,1764219190240,-151.0,7.713e-05,2]
[394964860,1764219190249,-500.0,7.713e-05,2]
[394964861,1764219190258,-151.0,7.713e-05,2]
[394964862,1764219190267,-151.0,7.713e-05,2]
[394964863,1764219190276,-413.2942666,7.72e-05,2]
[394964864,1764219190285,-166.66,7.792e-05,2]
[394964865,1764219190295,-500.0,7.792e-05,2]
[394964866,1764219190304,-500.0,7.823e-05,2]
[394964867,1764219190313,-151.0,7.823e-05,2]
[394964868,1764219190322,-151.0,7.823e-05,2]
[394964869,1764219190331,-1403.0,7.823e-05,2]
[394964870,1764219190340,-151.0,7.823e-05,2]
[394964871,1764219190349,-500.0,7.823e-05,2]
[394964872,1764219190359,-396.5876234,7.83e-05,2]
[394964873,1764219190368,-1000.0,7.836e-05,2]
[394964874,1764219190377,-1000.0,7.836e-05,2]
[394964875,1764219190387,-1000.0,7.836e-05,2]
[394964876,1764219190396,-1000.0,7.836e-05,2]
[394964877,1764219190405,-1000.0,7.836e-05,2]
[394964878,1764219190414,-808.56672101,7.836e-05,2]
[394964879,1764219190424,-1015.28266069,7.836e-05,2]
[394964880,1764219190433,-151.0,7.836e-05,2]
[394964881,1764219190443,-151.0,7.836e-05,2]
[394964882,1764219190452,-151.0,7.836e-05,2]
[394964883,1764219190462,-151.0,7.836e-05,2]
[394964884,1764219190471,-151.0,7.836e-05,2]
[394964885,1764219190482,-151.0,7.836e-05,2]
[394964886,1764219190493,-151.63089245,7.836e-05,2]
[394964887,1764219190504,-500.0,7.836e-05,2]
[394964888,1764219190513,-151.0,7.836e-05,2]
[394964889,1764219190522,-500.0,7.836e-05,2]
[394964890,1764219190531,-151.0,7.836e-05,2]
[394964891,1764219190540,-151.0,7.836e-05,2]
[394964892,1764219190550,-151.0,7.836e-05,2]
[394964893,1764219190559,-151.0,7.836e-05,2]
[394964894,1764219190568,-247.9004018,7.836e-05,2]
[394964895,1764219190578,-500.0,7.836e-05,2]
[394964896,1764219190587,-500.0,7.836e-05,2]
[394964897,1764219190596,-396.683205,7.84e-05,2]
[394964898,1764219190606,-396.5876234,7.84e-05,2]
[394964899,1764219190615,-396.5876234,7.84e-05,2]
[394964900,1764219190624,-396.5876234,7.84e-05,2]
[394964901,1764219190633,-500.0,7.85e-05,2]
[394964902,1764219190642,-500.72488881,7.85e-05,2]
[394964903,1764219190652,-500.98965846,7.85e-05,2]
[394964904,1764219190661,-151.0,7.85e-05,2]
[394964905,1764219190670,-500.0,7.85e-05,2]
[394964906,1764219190679,-151.0,7.85e-05,2]
[394964907,1764219190689,-500.0,7.85e-05,2]
[394964908,1764219190698,-151.0,7.85e-05,2]
[394964909,1764219190708,-151.511978,7.85e-05,2]
[394964910,1764219190721,-2212.33912909,7.931e-05,2]
[394964911,1764219190730,-500.0,7.96e-05,2]
[394964912,1764219190739,-151.0,7.96e-05,2]
[394964913,1764219190749,-151.0,7.96e-05,2]
[394964914,1764219190760,-1403.0,7.96e-05,2]
[394964915,1764219190769,-151.0,7.96e-05,2]
[394964916,1764219190778,-500.0,7.96e-05,2]
[394964917,1764219190788,-500.0,7.973e-05,2]
[394964918,1764219190797,-151.0,7.973e-05,2]
[394964919,1764219190807,-500.0,7.973e-05,2]
[394964920,1764219190816,-151.0,7.973e-05,2]
[394964921,1764219190826,-151.0,7.973e-05,2]
[394964922,1764219190835,-151.0,7.973e-05,2]
[394964923,1764219190846,-151.0,7.973e-05,2]
[394964924,1764219190856,-500.0,7.973e-05,2]
[394964925,1764219190866,-500.0,7.973e-05,2]
[394964926,1764219190877,-327.381816,7.973e-05,2]
[394964927,1764219190887,-327.381816,7.973e-05,2]
[394964928,1764219190899,-327.381816,7.973e-05,2]
[394964929,1764219190909,-327.381816,7.973e-05,2]
[394964930,1764219190918,-213.0334343,7.987e-05,2]
[394964931,1764219190927,-151.0,7.987e-05,2]
[394964932,1764219190937,-501.83311072,7.987e-05,2]
[394964933,1764219190947,-151.0,7.987e-05,2]
[394964934,1764219190956,-500.0,7.987e-05,2]
[394964935,1764219190966,-151.77587076,7.987e-05,2]
[394964936,1764219190976,-2212.33912909,7.998e-05,2]
[394964937,1764219190986,-166.68,8.066e-05,2]
[394964938,1764219190995,-500.0,8.066e-05,2]
[394964939,1764219191004,-500.0,8.097e-05,2]
[394964940,1764219191014,-151.0,8.097e-05,2]
[394964941,1764219191024,-198.82734352,8.097e-05,2]
[394964942,1764219191034,-1403.0,8.097e-05,2]
[394964943,1764219191044,-151.0,8.097e-05,2]
[394964944,1764219191054,-307.26058549,8.097e-05,2]
[394964945,1764219191064,-500.0,8.11e-05,2]
[394964946,1764219191075,-261.61576856,8.11e-05,2]
[394964947,1764219191084,-500.0,8.11e-05,2]
[394964948,1764219191095,-198.81226654,8.11e-05,2]
[394964949,1764219191104,-198.33668155,8.11e-05,2]
[394964950,1764219191113,-151.0,8.11e-05,2]
[394964951,1764219191123,-289.50127665,8.11e-05,2]
[394964952,1764219191132,-500.0,8.11e-05,2]
[394964953,1764219191142,-500.0,8.11e-05,2]
[394964954,1764219191151,-934.27,8.119e-05,2]
[394964955,1764219191162,-151.0,8.124e-05,2]
[394964956,1764219191171,-151.54986302,8.124e-05,2]
[394964957,1764219191181,-500.0,8.124e-05,2]
[394964958,1764219191191,-4264.56159023,8.195e-05,2]
[394964959,1764219191202,-300.0,8.198e-05,2]
[394964960,1764219191211,-300.0,8.198e-05,2]
[394964961,1764219191221,-300.0,8.198e-05,2]
[394964962,1764219191232,-300.0,8.198e-05,2]
[394964963,1764219191242,-300.0,8.198e-05,2]
[394964964,1764219191252,-300.0,8.198e-05,2]
[394964965,1764219191261,-300.0,8.198e-05,2]
[394964966,1764219191270,-300.0,8.198e-05,2]
[394964967,1764219191280,-300.0,8.198e-05,2]
[394964968,1764219191289,-300.0,8.198e-05,2]
[394964969,1764219191298,-300.0,8.198e-05,2]
[394964970,1764219191307,-500.0,8.219e-05,2]
[394964971,1764219191316,-434.27355769,8.219e-05,2]
[394964972,1764219191325,-151.0,8.219e-05,2]
[394964973,1764219191335,-558.171817,8.219e-05,2]
[394964974,1764219191344,-558.171817,8.219e-05,2]
[394964975,1764219191353,-558.171817,8.219e-05,2]
[394964976,1764219191362,-558.171817,8.219e-05,2]
[394964977,1764219191372,-153.57,8.227e-05,2]
[394964978,1764219191381,-500.0,8.234e-05,2]
[394964979,1764219191391,-500.0,8.234e-05,2]
[394964980,1764219191400,-500.0,8.234e-05,2]
[394964981,1764219191409,-500.0,8.234e-05,2]
[394964982,1764219191418,-500.0,8.234e-05,2]
[394964983,1764219191427,-500.0,8.234e-05,2]
[394964984,1764219191436,-500.0,8.234e-05,2]
[394964985,1764219191446,-500.0,8.234e-05,2]
[394964986,1764219191456,-500.0,8.234e-05,2]
[394964987,1764219191465,-500.0,8.234e-05,2]
[394964988,1764219191474,-500.0,8.234e-05,2]
[394964989,1764219191484,-269.23109911,8.234e-05,2]
[394964990,1764219191494,-500.0,8.234e-05,2]
[394964991,1764219191503,-186.93924573,8.234e-05,2]
[394964992,1764219191512,-1403.0,8.234e-05,2]
[394964993,1764219191522,-199.12869629,8.234e-05,2]
[394964994,1764219191531,-151.0,8.234e-05,2]
[394964995,1764219191540,-151.0,8.234e-05,2]
[394964996,1764219191549,-153.57,8.235e-05,2]
[394964997,1764219191559,-294.32,8.244e-05,2]
[394964998,1764219191569,-151.0,8.244e-05,2]
[394964999,1764219191579,-383.16279763,8.247e-05,2]
[394965000,1764219191588,-308.94157316,8.247e-05,2]
[394965001,1764219191597,-214.74111464,8.247e-05,2]
[394965002,1764219191607,-315.3500307,8.247e-05,2]
[394965003,1764219191617,-500.0,8.247e-05,2]
[394965004,1764219191626,-250.24315739,8.255e-05,2]
[394965005,1764219191636,-151.0,8.261e-05,2]
[394965006,1764219191645,-500.0,8.261e-05,2]
[394965007,1764219191656,-420.0,8.269e-05,2]
[394965008,1764219191667,-1680.0,8.269e-05,2]
[394965009,1764219191676,-300.0,8.284e-05,2]
[394965010,1764219191688,-300.0,8.284e-05,2]
[394965011,1764219191698,-300.0,8.284e-05,2]
[394965012,1764219191709,-300.0,8.284e-05,2]
[394965013,1764219191721,-300.0,8.284e-05,2]
[394965014,1764219191730,-300.0,8.284e-05,2]
[394965015,1764219191740,-300.0,8.284e-05,2]
[394965016,1764219191751,-300.0,8.284e-05,2]
[394965017,1764219191760,-300.0,8.284e-05,2]
[394965018,1764219191769,-300.0,8.284e-05,2]
[394965019,1764219191778,-300.0,8.284e-05,2]
[394965020,1764219191789,-300.0,8.284e-05,2]
[394965021,1764219191799,-300.0,8.284e-05,2]
[394965022,1764219191808,-300.0,8.284e-05,2]
[394965023,1764219191817,-224.3,8.301e-05,2]
[394965024,1764219191827,-300.0,8.302e-05,2]
[394965025,1764219191837,-300.0,8.302e-05,2]
[394965026,1764219191846,-300.0,8.302e-05,2]
[394965027,1764219191856,-300.0,8.302e-05,2]
[394965028,1764219191865,-300.0,8.302e-05,2]
[394965029,1764219191875,-300.0,8.302e-05,2]
[394965030,1764219191884,-4264.56159023,8.309e-05,2]
[394965031,1764219191894,-500.0,8.34e-05,2]
[394965032,1764219191903,-500.0,8.371e-05,2]
[394965033,1764219191912,-1403.0,8.371e-05,2]
[394965034,1764219191922,-226.00720925,8.384e-05,2]
[394965035,1764219191931,-300.0,8.397e-05,2]
[394965036,1764219191941,-300.0,8.397e-05,2]
[394965037,1764219191952,-300.0,8.397e-05,2]
[394965038,1764219191961,-300.0,8.397e-05,2]
[394965039,1764219191971,-300.0,8.397e-05,2]
[394965040,1764219191981,-300.0,8.397e-05,2]
[394965041,1764219191990,-300.0,8.397e-05,2]
[394965042,1764219191999,-300.0,8.397e-05,2]
[394965043,1764219192009,-300.0,8.397e-05,2]
[394965044,1764219192019,-300.0,8.397e-05,2]
[394965045,1764219192029,-300.0,8.397e-05,2]
[394965046,1764219192039,-300.0,8.397e-05,2]
[394965047,1764219192048,-300.0,8.397e-05,2]
[394965048,1764219192058,-300.0,8.397e-05,2]
[394965049,1764219192067,-327.381816,8.397e-05,2]
[394965050,1764219192077,-327.381816,8.397e-05,2]
[394965051,1764219192087,-327.381816,8.397e-05,2]
[394965052,1764219192096,-327.381816,8.397e-05,2]
[394965053,1764219192105,-245.0,8.398e-05,2]
[394965054,1764219192116,-292.59428423,8.398e-05,2]
[394965055,1764219192126,-300.0,8.402e-05,2]
[394965056,1764219192135,-300.0,8.402e-05,2]
[394965057,1764219192144,-300.0,8.402e-05,2]
[394965058,1764219192154,-300.0,8.402e-05,2]
[394965059,1764219192240,-300.0,8.402e-05,2]
[394965060,1764219192251,-300.0,8.402e-05,2]
[394965061,1764219192261,-300.0,8.402e-05,2]
[394965062,1764219192271,-300.0,8.404e-05,2]
[394965063,1764219192280,-300.0,8.404e-05,2]
[394965064,1764219192290,-300.0,8.404e-05,2]
[394965065,1764219192299,-300.0,8.405e-05,2]
[394965066,1764219192309,-300.0,8.405e-05,2]
[394965067,1764219192319,-300.0,8.405e-05,2]
[394965068,1764219192330,-300.0,8.405e-05,2]
[394965069,1764219192341,-2212.33912909,8.447e-05,2]
[394965070,1764219192352,-500.0,8.508e-05,2]
[394965071,1764219192362,-1403.0,8.508e-05,2]
[394965072,1764219192373,-300.0,8.508e-05,2]
[394965073,1764219192382,-300.0,8.508e-05,2]
[394965074,1764219192392,-300.0,8.508e-05,2]
[394965075,1764219192403,-300.0,8.508e-05,2]
[394965076,1764219192413,-300.0,8.508e-05,2]
[394965077,1764219192423,-300.0,8.508e-05,2]
[394965078,1764219192432,-300.0,8.508e-05,2]
[394965079,1764219192444,-300.0,8.508e-05,2]
[394965080,1764219192454,-300.0,8.508e-05,2]
[394965081,1764219192463,-300.0,8.533e-05,2]
[394965082,1764219192473,-300.0,8.533e-05,2]
[394965083,1764219192483,-300.0,8.533e-05,2]
[394965084,1764219192492,-300.0,8.533e-05,2]
[394965085,1764219192501,-300.0,8.533e-05,2]
[394965086,1764219192511,-4264.56159023,8.559e-05,2]
[394965087,1764219192521,-500.0,8.614e-05,2]
[394965088,1764219192530,-300.0,8.636e-05,2]
[394965089,1764219192540,-300.0,8.636e-05,2]
[394965090,1764219192549,-300.0,8.636e-05,2]
[394965091,1764219192559,-300.0,8.636e-05,2]
[394965092,1764219192568,-300.0,8.636e-05,2]
[394965093,1764219192578,-203.0499021,8.645e-05,2]
[394965094,1764219192587,-1403.0,8.645e-05,2]
[394965095,1764219192596,-152.093735,8.676e-05,2]
[394965096,1764219192606,-558.171817,8.676e-05,2]
[394965097,1764219192615,-558.171817,8.676e-05,2]
[394965098,1764219192624,-558.171817,8.676e-05,2]
[394965099,1764219192633,-558.171817,8.676e-05,2]
[394965100,1764219192642,-2212.33912909,8.685e-05,2]
[394965101,1764219192651,-151.0,8.757e-05,2]
[394965102,1764219192660,-279.664792,8.757e-05,2]
[394965103,1764219192669,-5523.74131499,8.761e-05,2]
[394965104,1764219192678,-2212.33912909,8.771e-05,2]
[394965105,1764219192687,-1403.0,8.782e-05,2]
[394965106,1764219192696,-5523.74131499,8.825e-05,2]
[394965107,1764219192705,-4264.56159027,8.87e-05,2]
[394965108,1764219192719,-545.66585124,8.883e-05,2]
[394965109,1764219192729,-500.0,8.888e-05,2]
[394965110,1764219192738,-5523.74131499,8.89e-05,2]
[394965111,1764219192747,-327.381816,8.89e-05,2]
[394965112,1764219192759,-327.381816,8.89e-05,2]
[394965113,1764219192768,-327.381816,8.89e-05,2]
[394965114,1764219192777,-327.381816,8.89e-05,2]
[394965115,1764219192788,-1403.0,8.919e-05,2]
[394965116,1764219192797,-5523.74131499,8.955e-05,2]
[394965117,1764219192806,-500.0,9.008e-05,2]
[394965118,1764219192815,-500.0,9.008e-05,2]
[394965119,1764219192824,-500.0,9.008e-05,2]
[394965120,1764219192833,-500.0,9.008e-05,2]
[394965121,1764219192843,-640.00853988,9.008e-05,2]
[394965122,1764219192852,-581.66602038,9.008e-05,2]
[394965123,1764219192862,-500.0,9.008e-05,2]
[394965124,1764219192872,-500.0,9.008e-05,2]
[394965125,1764219192882,-500.0,9.008e-05,2]
[394965126,1764219192891,-5523.74131499,9.019e-05,2]
[394965127,1764219192901,-1403.0,9.056e-05,2]
[394965128,1764219192911,-558.171817,9.069e-05,2]
[394965129,1764219192920,-558.171817,9.069e-05,2]
[394965130,1764219192930,-558.171817,9.069e-05,2]
[394965131,1764219192939,-558.171817,9.069e-05,2]
[394965132,1764219192949,-5523.74131499,9.084e-05,2]
[394965133,1764219192959,-151.0,9.084e-05,2]
[394965134,1764219192969,-587.0,9.096e-05,2]
[394965135,1764219192979,-731.0,9.096e-05,2]
[394965136,1764219192988,-5523.74131499,9.149e-05,2]
[394965137,1764219192999,-500.0,9.162e-05,2]
[394965138,1764219193009,-3897.6109041,9.164e-05,2]
[394965139,1764219193019,-1403.0,9.193e-05,2]
[394965140,1764219193029,-5523.74131499,9.213e-05,2]
[394965141,1764219193039,-5523.74131499,9.278e-05,2]
[394965142,1764219193049,-637.422,9.312e-05,2]
[394965143,1764219193059,-2153.0,9.312e-05,2]
[394965144,1764219193068,-1032.444,9.312e-05,2]
[394965145,1764219193078,-150.0,9.312e-05,2]
[394965146,1764219193087,-327.381816,9.312e-05,2]
[394965147,1764219193096,-327.381816,9.312e-05,2]
[394965148,1764219193106,-327.381816,9.312e-05,2]
[394965149,1764219193116,-327.381816,9.312e-05,2]
[394965150,1764219193126,-1403.0,9.33e-05,2]
[394965151,1764219193135,-5529.2650563,9.343e-05,2]
[394965152,1764219193145,-500.0,9.436e-05,2]
[394965153,1764219193154,-1403.0,9.467e-05,2]
[394965154,1764219193163,-869.6745452,9.495e-05,2]
[394965155,1764219193174,-289.91581078,9.518e-05,2]
[394965156,1764219193184,-1000.0,9.556e-05,2]
[394965157,1764219193195,-480.7643268,9.556e-05,2]
[394965158,1764219193204,-1000.0,9.556e-05,2]
[394965159,1764219193215,-1000.0,9.556e-05,2]
[394965160,1764219193224,-1000.0,9.556e-05,2]
[394965161,1764219193234,-1000.0,9.556e-05,2]
[394965162,1764219193243,-1000.0,9.556e-05,2]
[394965163,1764219193254,-151.0,9.556e-05,2]
[394965164,1764219193263,-1403.0,9.604e-05,2]
[394965165,1764219193273,-558.171817,9.619e-05,2]
[394965166,1764219193282,-558.171817,9.619e-05,2]
[394965167,1764219193292,-558.171817,9.619e-05,2]
[394965168,1764219193301,-558.171817,9.619e-05,2]
[394965169,1764219193312,-150.141,9.651e-05,2]
[394965170,1764219193321,-150.319,9.651e-05,2]
[394965171,1764219193331,-500.0,9.71e-05,2]
[394965172,1764219193340,-1403.0,9.741e-05,2]
[394965173,1764219193349,-1403.0,9.878e-05,2]
[394965174,1764219193360,-500.0,9.984e-05,2]
[394965175,1764219193369,-209.40437684,0.0001,2]
[394965176,1764219193379,-823.0,0.00010005,2]
[394965177,1764219193389,-1403.0,0.00010015,2]
[394965178,1764219193399,-8260.39649735,0.0001009,2]
[394965179,1764219193408,-791.42084788,0.00010104,2]
[394965180,1764219193417,-1464.88958035,0.00010104,2]
[394965181,1764219193428,-1500.0,0.00010104,2]
[394965182,1764219193438,-1500.0,0.00010104,2]
[394965183,1764219193448,-1500.0,0.00010104,2]
[394965184,1764219193457,-1500.0,0.00010104,2]
[394965185,1764219193466,-327.381816,0.00010104,2]
[394965186,1764219193475,-327.381816,0.00010104,2]
[394965187,1764219193484,-327.381816,0.00010104,2]
[394965188,1764219193493,-327.381824,0.00010104,2]
[394965189,1764219193502,-153.0,0.00010126,2]
[394965190,1764219193511,-153.0,0.00010126,2]
[394965191,1764219193521,-153.0,0.00010126,2]
[394965192,1764219193530,-153.0,0.00010126,2]
[394965193,1764219193859,-153.0,0.00010126,2]
[394965194,1764219193873,-153.0,0.00010126,2]
[394965195,1764219193883,-153.0,0.00010126,2]
[394965196,1764219193892,-1403.0,0.00010152,2]
[394965197,1764219193902,-437.90805363,0.00010258,2]
[394965198,1764219193912,-1403.0,0.00010289,2]
[394965199,1764219193922,-1403.0,0.00010426,2]
[394965200,1764219193931,-217.15233878,0.00010548,2]
[394965201,1764219193941,-1403.0,0.00010563,2]
[394965202,1764219193951,-455.76854465,0.00010652,2]
[394965203,1764219193960,-2000.0,0.00010652,2]
[394965204,1764219193970,-2000.0,0.00010652,2]
[394965205,1764219193979,-1228.58926296,0.00010652,2]
[394965206,1764219193989,-151.0,0.00010652,2]
[394965207,1764219193999,-1403.0,0.000107,2]
[394965208,1764219194009,-250.0,0.000108,2]
[394965209,1764219194018,-153.0,0.00010807,2]
[394965210,1764219194028,-1403.0,0.00010837,2]
[394965211,1764219194037,-572.17372625,0.00010958,2]
[394965212,1764219194047,-642.83,0.00010958,2]
[394965213,1764219194057,-999.0,0.00010959,2]
[394965214,1764219194067,-151.0,0.00010959,2]
[394965215,1764219194076,-151.431845,0.00010959,2]
[394965216,1764219194086,-558.171817,0.00010959,2]
[394965217,1764219194095,-558.171817,0.00010959,2]
[394965218,1764219194106,-558.171817,0.00010959,2]
[394965219,1764219194116,-558.171809,0.00010959,2]
[394965220,1764219194125,-500.0,0.00010959,2]
[394965221,1764219194134,-500.0,0.00010959,2]
[394965222,1764219194143,-500.0,0.00010959,2]
[394965223,1764219194153,-500.0,0.00010959,2]
[394965224,1764219194163,-500.0,0.00010959,2]
[394965225,1764219194172,-500.0,0.00010959,2]
[394965226,1764219194181,-500.0,0.00010959,2]
[394965227,1764219194190,-500.0,0.00010959,2]
[394965228,1764219194200,-500.0,0.00010959,2]
[394965229,1764219194209,-500.0,0.00010959,2]
[394965230,1764219194218,-500.0,0.00010959,2]
[394965231,1764219194227,-500.0,0.00010959,2]
[394965232,1764219194237,-500.0,0.00010959,2]
[394965233,1764219194246,-500.0,0.00010959,2]
[394965234,1764219194256,-500.0,0.00010959,2]
[394965235,1764219194265,-500.0,0.00010959,2]
[394965236,1764219194275,-500.0,0.00010959,2]
[394965237,1764219194284,-322.26795184,0.00010959,2]
[394965238,1764219194294,-500.0,0.00010959,2]
[394965239,1764219194303,-500.0,0.00010959,2]
[394965240,1764219194313,-500.0,0.00010959,2]
[394965241,1764219194323,-500.0,0.00010959,2]
[394965242,1764219194332,-170.0,0.00010959,2]
[394965243,1764219194342,-500.0,0.00010959,2]
[394965244,1764219194351,-500.0,0.00010959,2]
[394965245,1764219194362,-500.0,0.00010959,2]
[394965246,1764219194372,-500.0,0.00010959,2]
[394965247,1764219194382,-500.0,0.00010959,2]
[394965248,1764219194392,-500.0,0.00010959,2]
[394965249,1764219194402,-500.0,0.00010959,2]
[394965250,1764219194411,-500.0,0.00010959,2]
[394965251,1764219194421,-500.0,0.00010973,2]
[394965252,1764219194430,-500.0,0.00010973,2]
[394965253,1764219194440,-500.0,0.00010973,2]
[394965254,1764219194449,-500.0,0.00010973,2]
[394965255,1764219194459,-500.0,0.00010973,2]
[394965256,1764219194468,-500.0,0.00010973,2]
[394965257,1764219194477,-500.0,0.00010973,2]
[394965258,1764219194487,-500.57973756,0.00010973,2]
[394965259,1764219194496,-288.32736267,0.00010973,2]
[394965260,1764219194506,-500.0,0.00010973,2]
[394965261,1764219194515,-170.86893309,0.00010973,2]
[394965262,1764219194525,-500.0,0.00010973,2]
[394965263,1764219194534,-623.35056418,0.00010973,2]
[394965264,1764219194544,-1425.95206447,0.00010974,2]
[394965265,1764219194553,-411.871491,0.00010989,2]
[394965266,1764219194563,-151.0,0.00011,2]
[394965267,1764219194572,-151.0,0.00011,2]
[394965268,1764219194582,-1152.0,0.00011006,2]
[394965269,1764219194592,-224.3,0.00011093,2]
[394965270,1764219194602,-225.18697532,0.00011096,2]
[394965271,1764219194611,-600.0,0.00011177,2]
[394965272,1764219194621,-2500.0,0.00011199,2]
[394965273,1764219194630,-727.07740084,0.00011199,2]
[394965274,1764219194639,-151.0,0.000113,2]
[394965275,1764219194649,-151.0,0.000113,2]
[394965276,1764219194658,-334.1402565,0.00011518,2]
[394965277,1764219194668,-1000.0,0.00011521,2]
[394965278,1764219194677,-641.72701092,0.00011521,2]
[394965279,1764219194687,-1000.0,0.00011521,2]
[394965280,1764219194696,-1000.0,0.00011521,2]
[394965281,1764219194705,-1000.0,0.00011521,2]